fUST/lending_fUST_20240114
["ID","MTS","AMOUNT","RATE_DAILY","PERIOD"]
[311538844,1705203039250,-503.52955444,0.00030136,2]
[311538845,1705203039260,-501.20208417,0.00030136,2]
[311538846,1705203039269,-500.0,0.00030136,2]
[311538847,1705203039279,-504.62025724,0.00030136,2]
[311538848,1705203039289,-320.22571958,0.00030136,2]
[311538849,1705203039301,-503.36381833,0.00030136,2]
[311538850,1705203039311,-500.0,0.00030136,2]
[311538851,1705203039320,-500.0,0.00030136,2]
[311538852,1705203039422,-500.0,0.00030136,2]
[311538853,1705203039432,-500.0,0.00030136,2]
[311538854,1705203039441,-500.0,0.00030136,2]
[311538855,1705203039450,-500.85998618,0.00030136,2]
[311538856,1705203039459,-500.0,0.00030136,2]
[311538857,1705203039468,-512.0486216,0.00030136,2]
[311538858,1705203039477,-500.0,0.00030136,2]
[311538859,1705203039486,-500.0,0.00030136,2]
[311538860,1705203039495,-506.47856889,0.00030136,2]
[311538861,1705203039505,-500.0,0.00030136,2]
[311538862,1705203039514,-500.0,0.00030136,2]
[311538863,1705203039523,-500.0,0.00030136,2]
[311538864,1705203039532,-454.10383903,0.00030136,2]
[311538865,1705203039543,-500.0,0.00030136,2]
[311538866,1705203039553,-501.27849338,0.00030136,2]
[311538867,1705203039563,-502.31888881,0.00030136,2]
[311538868,1705203039574,-500.0,0.00030136,2]
[311538869,1705203039583,-501.24793934,0.00030136,2]
[311538870,1705203039592,-500.0,0.00030136,2]
[311538871,1705203039601,-506.13508093,0.00030136,2]
[311538872,1705203039610,-504.18164391,0.00030136,2]
[311538873,1705203039620,-500.0,0.00030136,2]
[311538874,1705203039630,-527.7237988,0.00030136,2]
[311538875,1705203039640,-500.0,0.00030136,2]
[311538876,1705203039650,-506.37140964,0.00030136,2]
[311538877,1705203039659,-500.0,0.00030136,2]
[311538878,1705203039670,-500.0,0.00030136,2]
[311538879,1705203039680,-504.08665223,0.00030136,2]
[311538880,1705203039691,-500.0,0.00030136,2]
[311538881,1705203039702,-500.0,0.00030136,2]
[311538882,1705203039711,-500.0,0.00030136,2]
[311538883,1705203039721,-500.0,0.00030136,2]
[311538885,1705203039730,-500.0,0.00030136,2]
[311538886,1705203039739,-500.0,0.00030136,2]
[311538887,1705203039748,-505.23091024,0.00030136,2]
[311538888,1705203039757,-500.0,0.00030136,2]
[311538889,1705203039768,-500.0,0.00030136,2]
[311538890,1705203039777,-500.0,0.00030136,2]
[311538891,1705203039786,-505.8073812,0.00030136,2]
[311538892,1705203039794,-500.0,0.00030136,2]
[311538893,1705203039803,-504.80258485,0.00030136,2]
[311538894,1705203039813,-500.0,0.00030136,2]
[311538895,1705203039822,-500.0,0.00030136,2]
[311538896,1705203039831,-500.0,0.00030136,2]
[311538897,1705203039841,-500.0,0.00030136,2]
[311538898,1705203039850,-500.0,0.00030136,2]
[311538899,1705203039859,-500.0,0.00030136,2]
[311538900,1705203039868,-516.74625266,0.00030136,2]
[311538901,1705203039876,-500.0,0.00030136,2]
[311538902,1705203039886,-500.0,0.00030136,2]
[311538903,1705203039896,-505.48514853,0.00030136,2]
[311538904,1705203039906,-500.0,0.00030136,2]
[311538905,1705203039916,-500.0,0.00030136,2]
[311538906,1705203039926,-502.53384804,0.00030136,2]
[311538907,1705203039935,-501.8628807,0.00030136,2]
[311538908,1705203039945,-500.0,0.00030136,2]
[311538909,1705203039956,-500.0,0.00030136,2]
[311538910,1705203039966,-500.0,0.00030136,2]
[311538911,1705203039977,-213.24552767,0.00030136,2]
[311538912,1705203039987,-500.0,0.00030136,2]
[311538913,1705203039996,-500.0,0.00030136,2]
[311538914,1705203040005,-500.0,0.00030136,2]
[311538915,1705203040016,-501.32420891,0.00030136,2]
[311538916,1705203040025,-501.74296753,0.00030136,2]
[311538917,1705203040034,-500.0,0.00030136,2]
[311538918,1705203040043,-502.83244463,0.00030136,2]
[311538919,1705203040053,-5087.77,0.00030136,2]
[311538920,1705203040062,-500.0,0.00030136,2]
[311538921,1705203040072,-500.0,0.00030136,2]
[311538922,1705203040081,-500.0,0.00030136,2]
[311538923,1705203040090,-500.0,0.00030136,2]
[311538924,1705203040099,-500.0,0.00030136,2]
[311538925,1705203040108,-500.0,0.00030136,2]
[311538926,1705203040116,-500.0,0.00030136,2]
[311538927,1705203040126,-1079.73,0.00030136,2]
[311538928,1705203040135,-500.0,0.00030136,2]
[311538929,1705203040144,-1363.09,0.00030136,2]
[311538930,1705203040182,-524.97495764,0.00030136,2]
[311538931,1705203040192,-500.0,0.00030136,2]
[311538932,1705203040201,-500.0,0.00030136,2]
[311538933,1705203040211,-500.0,0.00030136,2]
[311538934,1705203040220,-496.52264113,0.00030136,2]
[311538935,1705203040230,-500.0,0.00030136,2]
[311538936,1705203040240,-636.14,0.00030136,2]
[311538937,1705203040249,-500.0,0.00030136,2]
[311538938,1705203040259,-3619.11,0.00030136,2]
[311538939,1705203040268,-500.0,0.00030136,2]
[311538940,1705203040277,-500.0,0.00030136,2]
[311538941,1705203040287,-500.0,0.00030136,2]
[311538943,1705203040297,-500.0,0.00030136,2]
[311538945,1705203040307,-500.0,0.00030136,2]
[311538947,1705203040316,-500.0,0.00030136,2]
[311538949,1705203040326,-500.0,0.00030136,2]
[311538951,1705203040336,-500.0,0.00030136,2]
[311538953,1705203040346,-507.36095942,0.00030136,2]
[311538956,1705203040356,-503.44180302,0.00030136,2]
[311538958,1705203040366,-280.0,0.00030136,2]
[311538960,1705203040375,-500.0,0.00030136,2]
[311538962,1705203040385,-500.0,0.00030136,2]
[311538964,1705203040394,-620.04,0.00030136,2]
[311538965,1705203040404,-500.0,0.00030136,2]
[311538967,1705203040413,-500.0,0.00030136,2]
[311538970,1705203040423,-500.0,0.00030136,2]
[311538973,1705203040432,-500.0,0.00030136,2]
[311538976,1705203040442,-500.63100794,0.00030136,2]
[311538980,1705203040451,-500.0,0.00030136,2]
[311538982,1705203040461,-500.0,0.00030136,2]
[311538984,1705203040471,-557.26811774,0.00030136,2]
[311538986,1705203040480,-500.0,0.00030136,2]
[311538988,1705203040489,-549.87,0.00030136,2]
[311538990,1705203040498,-1107.47,0.00030136,2]
[311538992,1705203040507,-500.0,0.00030136,2]
[311538994,1705203040518,-500.0,0.00030136,2]
[311538996,1705203040528,-500.0,0.00030136,2]
[311538998,1705203040539,-500.0,0.00030136,2]
[311539000,1705203040549,-502.85513942,0.00030136,2]
[311539002,1705203040558,-153.0,0.00030137,2]
[311539004,1705203040569,-153.0,0.00030137,2]
[311539007,1705203040579,-306.0,0.00030137,2]
[311539008,1705203040589,-306.2535945,0.00030137,2]
[311539010,1705203040599,-306.2703506,0.00030137,2]
[311539013,1705203040609,-306.0,0.00030137,2]
[311539015,1705203040619,-453.0,0.000302,3]
[311539017,1705203040628,-200.0,0.00030225,15]
[311539019,1705203040638,-198.99630956,0.00030409,4]
[311539021,1705203040648,-500.0,0.0003041,2]
[311539022,1705203040658,-500.0,0.0003041,2]
[311539024,1705203040668,-500.0,0.0003041,2]
[311539026,1705203040678,-500.0,0.0003041,2]
[311539028,1705203040688,-500.0,0.0003041,2]
[311539031,1705203040699,-500.0,0.0003041,2]
[311539032,1705203040710,-500.0,0.0003041,2]
[311539034,1705203040719,-500.0,0.0003041,2]
[311539036,1705203040730,-500.0,0.0003041,2]
[311539038,1705203040739,-514.91644463,0.0003041,2]
[311539040,1705203040749,-500.0,0.0003041,2]
[311539042,1705203040759,-500.0,0.0003041,2]
[311539044,1705203040769,-500.0,0.0003041,2]
[311539046,1705203040778,-500.0,0.0003041,2]
[311539048,1705203040789,-500.0,0.0003041,2]
[311539049,1705203040799,-5087.77,0.0003041,2]
[311539050,1705203040809,-500.0,0.0003041,2]
[311539051,1705203040819,-503.9489291,0.0003041,2]
[311539052,1705203040829,-500.0,0.0003041,2]
[311539053,1705203040839,-500.0,0.0003041,2]
[311539054,1705203040849,-500.0,0.0003041,2]
[311539055,1705203040858,-1079.73,0.0003041,2]
[311539056,1705203040868,-1363.09,0.0003041,2]
[311539057,1705203040877,-500.0,0.0003041,2]
[311539058,1705203040887,-500.0,0.0003041,2]
[311539059,1705203040896,-636.14,0.0003041,2]
[311539060,1705203040906,-500.0,0.0003041,2]
[311539061,1705203040915,-3619.11,0.0003041,2]
[311539062,1705203040925,-500.0,0.0003041,2]
[311539063,1705203040935,-500.0,0.0003041,2]
[311539064,1705203040944,-500.0,0.0003041,2]
[311539065,1705203040954,-500.0,0.0003041,2]
[311539066,1705203040963,-500.0,0.0003041,2]
[311539067,1705203040973,-500.0,0.0003041,2]
[311539068,1705203040983,-500.0,0.0003041,2]
[311539069,1705203040993,-620.04,0.0003041,2]
[311539070,1705203041004,-500.0,0.0003041,2]
[311539071,1705203041014,-517.52867803,0.0003041,2]
[311539072,1705203041025,-549.87,0.0003041,2]
[311539073,1705203041035,-1107.47,0.0003041,2]
[311539074,1705203041046,-500.0,0.0003041,2]
[311539075,1705203041057,-500.0,0.0003041,2]
[311539076,1705203041067,-1581.82424474,0.00030644,4]
[311539077,1705203041077,-199.41200603,0.00030644,4]
[311539078,1705203041087,-224.48803699,0.00030644,4]
[311539079,1705203041097,-277.71411953,0.00030644,4]
[311539080,1705203041107,-155.87965591,0.00030644,4]
[311539081,1705203041117,-250.03195934,0.00030644,4]
[311539082,1705203041127,-157.36067435,0.00030644,4]
[311539083,1705203041137,-302.3179404,0.00030644,4]
[311539084,1705203041147,-240.68184522,0.00030644,4]
[311539085,1705203041158,-276.82054434,0.00030644,4]
[311539086,1705203041166,-856.43698242,0.00030644,4]
[311539087,1705203041177,-2035.70432751,0.00030644,4]
[311539088,1705203041187,-955.24255985,0.00030644,4]
[311539089,1705203041198,-1242.90009054,0.00030644,4]
[311539090,1705203041208,-310.46594148,0.00030644,4]
[311539091,1705203041218,-200.0,0.00030644,4]
[311539093,1705203041229,-1294.27145396,0.00030644,4]
[311539094,1705203041239,-963.30900442,0.00030644,4]
[311539095,1705203041249,-414.37823871,0.00030644,2]
[311539096,1705203041259,-1838.93813418,0.00030645,4]
[311539097,1705203041268,-9651.18028235,0.00030645,4]
[311539098,1705203041279,-27443.4319038,0.00030646,4]
[311539100,1705203041289,-1475.689214,0.00030647,2]
[311539101,1705203041299,-1475.689214,0.00030647,2]
[311539102,1705203041309,-1338.701363,0.00030647,2]
[311539103,1705203041319,-1338.701363,0.00030647,2]
[311539104,1705203041328,-157.47549032,0.00030683,4]
[311539105,1705203041337,-151.0,0.00030683,2]
[311539106,1705203041348,-282.77222254,0.00030684,3]
[311539107,1705203041357,-155.02790502,0.00030684,2]
[311539108,1705203041366,-567.23901564,0.00030684,4]
[311539109,1705203041375,-216.38230443,0.00030684,4]
[311539110,1705203041384,-171.86933386,0.00030684,4]
[311539111,1705203041393,-287.51986679,0.00030684,2]
[311539112,1705203041403,-433.1184245,0.00030684,2]
[311539113,1705203041412,-530.65004092,0.00030684,2]
[311539114,1705203041422,-500.0,0.00030684,2]
[311539115,1705203041431,-500.0,0.00030684,2]
[311539116,1705203041440,-500.0,0.00030684,2]
[311539117,1705203041449,-500.0,0.00030684,2]
[311539118,1705203041458,-500.0,0.00030684,2]
[311539119,1705203041468,-524.31504811,0.00030684,2]
[311539120,1705203041477,-512.74145213,0.00030684,2]
[311539121,1705203041486,-500.0,0.00030684,2]
[311539122,1705203041496,-500.0,0.00030684,2]
[311539123,1705203041506,-528.40288589,0.00030684,2]
[311539124,1705203041516,-5087.77,0.00030684,2]
[311539125,1705203041528,-500.0,0.00030684,2]
[311539126,1705203041537,-500.0,0.00030684,2]
[311539127,1705203041546,-500.0,0.00030684,2]
[311539128,1705203041558,-544.40544989,0.00030684,2]
[311539129,1705203041568,-1079.73,0.00030684,2]
[311539130,1705203041580,-1363.09,0.00030684,2]
[311539131,1705203041589,-500.0,0.00030684,2]
[311539132,1705203041600,-500.0,0.00030684,2]
[311539133,1705203041611,-636.14,0.00030684,2]
[311539134,1705203041621,-500.0,0.00030684,2]
[311539135,1705203041632,-3619.11,0.00030684,2]
[311539136,1705203041641,-514.11470318,0.00030684,2]
[311539137,1705203041652,-500.0,0.00030684,2]
[311539138,1705203041662,-500.0,0.00030684,2]
[311539139,1705203041671,-500.0,0.00030684,2]
[311539140,1705203041682,-500.0,0.00030684,2]
[311539141,1705203041692,-500.0,0.00030684,2]
[311539142,1705203041702,-500.0,0.00030684,2]
[311539143,1705203041711,-620.04,0.00030684,2]
[311539144,1705203041720,-500.0,0.00030684,2]
[311539145,1705203041730,-549.87,0.00030684,2]
[311539146,1705203041740,-1107.47,0.00030684,2]
[311539147,1705203041751,-500.0,0.00030684,2]
[311539148,1705203041762,-500.0,0.00030684,2]
[311539149,1705203041776,-150.96,0.00030711,30]
[311539150,1705203041785,-150.93,0.00030711,30]
[311539151,1705203041798,-150.5,0.00030721,30]
[311539152,1705203041811,-150.5,0.00030721,30]
[311539153,1705203041823,-150.5,0.00030731,30]
[311539154,1705203041834,-150.5,0.00030731,30]
[311539155,1705203041845,-158.71332,0.00030741,2]
[311539156,1705203041855,-6000.0,0.000308,2]
[311539157,1705203041867,-1000.0,0.00030903,14]
[311539158,1705203041879,-1000.0,0.00030903,14]
[311539159,1705203041891,-450.17381278,0.00030903,14]
[311539160,1705203041901,-6000.0,0.00030904,2]
[311539161,1705203041914,-151.0,0.00030904,2]
[311539162,1705203041926,-1475.689214,0.00030904,2]
[311539163,1705203041935,-1475.689214,0.00030904,2]
[311539164,1705203041948,-1338.701363,0.00030904,2]
[311539165,1705203041958,-1338.701363,0.00030904,2]
[311539166,1705203041970,-165.7,0.00030955,2]
[311539167,1705203041983,-165.7,0.00030955,2]
[311539168,1705203041996,-151.0,0.00030956,2]
[311539169,1705203042006,-1475.689214,0.00030956,2]
[311539170,1705203042016,-1475.689214,0.00030956,2]
[311539171,1705203042105,-1338.701363,0.00030956,2]
[311539172,1705203042115,-1338.701363,0.00030956,2]
[311539173,1705203042124,-488.12631448,0.00030956,4]
[311539174,1705203042135,-165.37716941,0.00030956,4]
[311539175,1705203042145,-1433.17230406,0.00030956,4]
[311539176,1705203042156,-1196.58612071,0.00030956,3]
[311539177,1705203042167,-8195.69184576,0.00030956,4]
[311539178,1705203042176,-596.62825304,0.00030956,4]
[311539179,1705203042186,-1579.25587195,0.00030956,4]
[311539180,1705203042195,-155.32468701,0.00030956,4]
[311539181,1705203042205,-155.18840639,0.00030956,4]
[311539182,1705203042214,-10402.05377441,0.00030956,4]
[311539183,1705203042224,-155.30882626,0.00030956,2]
[311539184,1705203042233,-200.4624163,0.00030956,4]
[311539185,1705203042244,-157.5231323,0.00030956,4]
[311539186,1705203042254,-192.56577062,0.00030956,4]
[311539187,1705203042264,-209.43717511,0.00030956,4]
[311539188,1705203042273,-679.85146659,0.00030956,4]
[311539189,1705203042282,-877.99385058,0.00030956,4]
[311539190,1705203042292,-640.78424721,0.00030956,4]
[311539191,1705203042303,-364.19012371,0.00030956,4]
[311539192,1705203042312,-377.16950447,0.00030956,4]
[311539193,1705203042323,-2783.96314986,0.00030956,4]
[311539194,1705203042332,-479.66150084,0.00030956,4]
[311539195,1705203042342,-595.95044374,0.00030956,4]
[311539196,1705203042352,-246.21822105,0.00030956,4]
[311539197,1705203042362,-255.33704035,0.00030956,4]
[311539198,1705203042372,-261.79245211,0.00030956,4]
[311539199,1705203042382,-155.58141865,0.00030956,4]
[311539200,1705203042392,-197.65983581,0.00030956,4]
[311539201,1705203042401,-209.54691897,0.00030956,4]
[311539202,1705203042410,-264.74763417,0.00030956,4]
[311539203,1705203042420,-325.02114179,0.00030956,4]
[311539204,1705203042429,-197.64414411,0.00030956,4]
[311539205,1705203042439,-213.32978792,0.00030956,4]
[311539206,1705203042448,-216.54029351,0.00030956,4]
[311539207,1705203042457,-324.46981676,0.00030956,4]
[311539208,1705203042467,-224.8478533,0.00030956,4]
[311539209,1705203042477,-294.06187806,0.00030956,4]
[311539210,1705203042486,-3177.43449897,0.00030956,4]
[311539211,1705203042497,-213.78063392,0.00030956,4]
[311539212,1705203042508,-155.38051604,0.00030956,4]
[311539213,1705203042519,-190.61771034,0.00030956,4]
[311539214,1705203042530,-257.57182078,0.00030956,4]
[311539215,1705203042539,-3962.3419092,0.00030956,4]
[311539216,1705203042548,-20753.08228998,0.00030957,2]
[311539217,1705203042559,-500.0,0.00030958,2]
[311539218,1705203042569,-512.29952338,0.00030958,2]
[311539219,1705203042579,-505.31107069,0.00030958,2]
[311539220,1705203042589,-603.81614802,0.00030958,2]
[311539221,1705203042598,-500.0,0.00030958,2]
[311539222,1705203042607,-500.0,0.00030958,2]
[311539223,1705203042616,-500.0,0.00030958,2]
[311539224,1705203042625,-500.0,0.00030958,2]
[311539225,1705203042635,-5087.77,0.00030958,2]
[311539226,1705203042644,-500.0,0.00030958,2]
[311539227,1705203042653,-388.61843141,0.00030958,2]
[311539228,1705203042662,-500.0,0.00030958,2]
[311539229,1705203042670,-1079.73,0.00030958,2]
[311539230,1705203042679,-1363.09,0.00030958,2]
[311539231,1705203042688,-500.0,0.00030958,2]
[311539232,1705203042697,-524.11118297,0.00030958,2]
[311539233,1705203042707,-636.14,0.00030958,2]
[311539234,1705203042716,-500.0,0.00030958,2]
[311539235,1705203042725,-3619.11,0.00030958,2]
[311539236,1705203042734,-500.0,0.00030958,2]
[311539237,1705203042743,-537.55367515,0.00030958,2]
[311539238,1705203042752,-531.09048374,0.00030958,2]
[311539239,1705203042761,-500.0,0.00030958,2]
[311539240,1705203042771,-500.0,0.00030958,2]
[311539241,1705203042781,-500.0,0.00030958,2]
[311539242,1705203042790,-620.04,0.00030958,2]
[311539243,1705203042799,-500.0,0.00030958,2]
[311539244,1705203042809,-549.87,0.00030958,2]
[311539246,1705203042818,-1107.47,0.00030958,2]
[311539247,1705203042827,-500.0,0.00030958,2]
[311539248,1705203042836,-500.0,0.00030958,2]
[311539249,1705203042845,-151.0,0.00030958,2]
[311539250,1705203042854,-1475.689214,0.00030958,2]
[311539251,1705203042864,-1475.689214,0.00030958,2]
[311539253,1705203042874,-1338.701363,0.00030958,2]
[311539255,1705203042883,-1338.701363,0.00030958,2]
[311539256,1705203042892,-150.5,0.0003097,30]
[311539257,1705203042901,-1134.0,0.0003097,30]
[311539258,1705203042910,-1973.0,0.0003097,30]
[311539259,1705203042919,-150.5,0.0003098,30]
[311539260,1705203042928,-1134.0,0.0003098,30]
[311539261,1705203042937,-1973.0,0.0003098,30]
[311539262,1705203042947,-200.0,0.00030983,2]
[311539263,1705203042956,-150.5,0.0003099,30]
[311539264,1705203042965,-1134.0,0.0003099,30]
[311539266,1705203042974,-1973.0,0.0003099,30]
[311539268,1705203042983,-201.390101,0.00030993,2]
[311539269,1705203042992,-70.75736599,0.00031,4]
[311539272,1705203043187,-400000.0,0.00042124,30]
[311539274,1705203043309,-260.35384667,0.00027462,7]
[311539275,1705203043319,-500.0,0.00030136,2]
[311539276,1705203043328,-84.2384975,0.0003041,2]
[311539342,1705203050261,-295.91,0.000329,120]
[311539343,1705203050289,-826.5437,0.000339,30]
[311539344,1705203050314,-1000.0,0.00034,34]
[311539345,1705203050340,-159.608457,0.00034521,31]
[311539346,1705203050362,-159.608457,0.00034521,38]
[311539347,1705203050386,-159.608457,0.00034521,46]
[311539348,1705203050409,-159.608457,0.00034521,53]
[311539349,1705203050433,-159.608457,0.00034521,61]
[311539350,1705203050456,-159.608457,0.00034521,68]
[311539351,1705203050478,-159.608457,0.00034521,75]
[311539352,1705203050500,-159.608457,0.00034521,83]
[311539353,1705203050523,-159.608457,0.00034521,90]
[311539354,1705203050546,-159.608457,0.00034521,97]
[311539355,1705203050570,-159.608457,0.00034521,105]
[311539356,1705203050592,-159.608457,0.00034521,112]
[311539357,1705203050614,-159.608457,0.00034521,120]
[311539358,1705203050636,-1134.0,0.0003454,30]
[311539359,1705203050658,-1973.0,0.0003454,30]
[311539360,1705203050680,-1134.0,0.0003455,30]
[311539361,1705203050703,-1973.0,0.0003455,30]
[311539362,1705203050725,-282.51,0.0003456,30]
[311539363,1705203050747,-1134.0,0.0003456,30]
[311539364,1705203050769,-1973.0,0.0003456,30]
[311539365,1705203050794,-1000.0,0.00035,35]
[311539366,1705203050821,-1615.362542,0.00035616,120]
[311539367,1705203050845,-1000.0,0.00036,36]
[311539368,1705203050868,-2554.54369297,0.00036,30]
[311539369,1705203050892,-1134.0,0.0003672,30]
[311539370,1705203050916,-1134.0,0.0003673,30]
[311539371,1705203050939,-1000.0,0.00037,37]
[311539372,1705203050962,-1071.99150681,0.0003707,31]
[311539373,1705203050986,-1973.0,0.0003793,30]
[311539374,1705203051093,-1973.0,0.0003794,30]
[311539375,1705203051118,-396.78854722,0.00038,120]
[311539376,1705203051144,-1000.0,0.00038,38]
[311539377,1705203051168,-31035.71627383,0.000383,30]
[311539378,1705203051190,-1000.0,0.00038356,120]
[311539379,1705203051214,-1000.0,0.00038356,120]
[311539380,1705203051237,-1000.0,0.00038356,120]
[311539381,1705203051259,-630.14682829,0.00038356,120]
[311539382,1705203051282,-633.52362627,0.00038678,30]
[311539383,1705203051306,-2000.0,0.00038728,30]
[311539384,1705203051330,-2000.0,0.00038728,30]
[311539385,1705203051353,-1000.0,0.00039,39]
[311539386,1705203051376,-160.0,0.00039683,30]
[311539387,1705203051400,-1355.15914856,0.00039726,30]
[311539388,1705203051424,-160.0,0.00039856,31]
[311539389,1705203051447,-164.66079013,0.000399,120]
[311539390,1705203051469,-72991.09249305,0.0003999,60]
[311539391,1705203051494,-155.02480397,0.0004,120]
[311539392,1705203051517,-3503.13487267,0.0004,120]
[311539393,1705203051540,-234.0,0.0004,30]
[311539394,1705203051563,-3954.83406993,0.0004,30]
[311539395,1705203051586,-191.0,0.0004,30]
[311539396,1705203051610,-62910.1950344,0.0004,60]
[311539397,1705203051633,-200.0,0.0004,30]
[311539398,1705203051656,-10006.4833042,0.0004,30]
[311539399,1705203051680,-1000.0,0.0004,40]
[311539400,1705203051704,-2823.06551029,0.0004,30]
[311539401,1705203051728,-9950.0,0.0004,120]
[311539402,1705203051753,-500.0,0.0004,120]
[311539403,1705203051778,-5883.24982636,0.0004,30]
[311539404,1705203051805,-160.0,0.0004003,32]
[311539405,1705203051832,-1140.07,0.0004008,30]
[311539406,1705203051858,-1134.0,0.0004009,30]
[311539407,1705203051883,-769.0,0.00040124,120]
[311539408,1705203051909,-160.0,0.00040203,33]
[311539409,1705203051934,-150542.08348805,0.00040301,60]
[311539667,1705204241717,-260.35384667,0.00027798,7]
[311539669,1705204241727,-587.43445735,0.00027799,2]
[311539671,1705204241735,-337.49852891,0.000278,2]
[311539673,1705204241748,-123.46093939,0.000278,2]
[311539675,1705204241757,-155.0,0.00027801,2]
[311539677,1705204241767,-155.0,0.00027801,4]
[311539679,1705204241777,-5000.0,0.00028379,5]
[311539681,1705204241787,-164.40588665,0.00028379,2]
[311539683,1705204241796,-189.34391103,0.00028387,2]
[311539685,1705204241804,-170.81326,0.00028551,2]
[311539687,1705204241815,-156.90996737,0.00028792,2]
[311539689,1705204241824,-198.54292549,0.00029348,2]
[311539691,1705204241834,-2305.37797556,0.00029677,2]
[311539693,1705204241843,-153.1880119,0.00029678,2]
[311539695,1705204241854,-154.1994419,0.00029678,2]
[311539697,1705204241864,-154.6228574,0.00029678,2]
[311539699,1705204241873,-156.4476198,0.00029678,2]
[311539701,1705204241882,-153.2699126,0.00029678,2]
[311539703,1705204241891,-202.1670954,0.00029878,2]
[311539705,1705204241900,-198.8089634,0.00029878,2]
[311539707,1705204241909,-198.8089634,0.00029878,2]
[311539709,1705204241919,-198.8089634,0.00029878,2]
[311539711,1705204241928,-198.8089634,0.00029878,2]
[311539713,1705204241937,-198.8089634,0.00029878,2]
[311539715,1705204241947,-198.8089634,0.00029878,2]
[311539717,1705204241956,-198.8089634,0.00029878,2]
[311539719,1705204241965,-198.8089634,0.00029878,2]
[311539721,1705204241975,-154.5972832,0.00029952,2]
[311539723,1705204241983,-2033.9,0.00030126,3]
[311539725,1705204241992,-1694.92,0.00030126,3]
[311539727,1705204242001,-222.01286472,0.00030134,4]
[311539728,1705204242010,-155.01940927,0.00030134,4]
[311539731,1705204242019,-2882.79183896,0.00030134,4]
[311539733,1705204242029,-272.97998012,0.00030134,4]
[311539735,1705204242038,-769.67896361,0.00030135,4]
[311539737,1705204242047,-500.0,0.00030136,2]
[311539739,1705204242055,-410.53974763,0.00030136,2]
[311539740,1705204242066,-500.0,0.00030136,2]
[311539743,1705204242075,-500.0,0.00030136,2]
[311539744,1705204242085,-515.31325227,0.00030136,2]
[311539746,1705204242097,-509.70718093,0.00030136,2]
[311539748,1705204242106,-500.0,0.00030136,2]
[311539751,1705204242115,-500.0,0.00030136,2]
[311539753,1705204242124,-500.0,0.00030136,2]
[311539754,1705204242133,-500.0,0.00030136,2]
[311539756,1705204242142,-501.75935001,0.00030136,2]
[311539758,1705204242151,-500.93686172,0.00030136,2]
[311539760,1705204242161,-512.73212551,0.00030136,2]
[311539762,1705204242170,-500.0,0.00030136,2]
[311539764,1705204242179,-501.42133558,0.00030136,2]
[311539766,1705204242187,-503.12196146,0.00030136,2]
[311539768,1705204242196,-354.86930357,0.00030136,2]
[311539770,1705204242205,-501.8944399,0.00030136,2]
[311539772,1705204242214,-500.0,0.00030136,2]
[311539775,1705204242223,-502.24408651,0.00030136,2]
[311539776,1705204242233,-500.0,0.00030136,2]
[311539778,1705204242242,-643.66658219,0.00030136,2]
[311539780,1705204242251,-500.0,0.00030136,2]
[311539782,1705204242260,-504.85185307,0.00030136,2]
[311539784,1705204242270,-501.26599081,0.00030136,2]
[311539787,1705204242279,-505.55228209,0.00030136,2]
[311539789,1705204242290,-500.0,0.00030136,2]
[311539791,1705204242299,-500.0,0.00030136,2]
[311539793,1705204242309,-518.62248158,0.00030136,2]
[311539795,1705204242318,-500.0,0.00030136,2]
[311539797,1705204242327,-500.0,0.00030136,2]